Cogmind - Beta 15 @@@ ROGUE MODE // 2025.10.18 @ 00:25:30 Player: souux Result: Destroyed by Y-72 Warden with Railgun Performance ------------- Evolutions (8) 4000 Regions Visited (18) 3600 Robots Destroyed (109) 545 Value Destroyed (4062) 4062 Prototype IDs (15) 300 Alien Tech Used (3) 600 Bonus (266) 266 TOTAL SCORE: 13373 Bonus ------- Met Zhirov 300 Friendly Fire -34 Cogmind --------- Core Integrity 0/1450 Matter 181/300 Energy 99/100 System Corruption 15% Temperature Cool (9) Movement Core (50) Location -2/Research Parts ------- > --- POWER (2) -------- (None) > --- PROPULSION (6) --- (None) > --- UTILITY (11) ----- Advanced Signal Interpreter > --- WEAPON (4) ------- (None) > --- INVENTORY (5) ---- Component Analysis Suite Peak State ------------ > --- POWER ------------ Neutrino Core Neutrino Core > --- PROPULSION ------- Linear Gravjet Linear Gravjet Improved Antigrav System Antigrav Array > --- UTILITY ---------- Advanced Power Amplifier Medium Storage Unit Enhanced Optical Array Hacking Suite Hacking Suite Hacking Suite System Shield Improved Dynamic Insulation System > --- WEAPON ----------- Nova Cannon > --- INVENTORY -------- Particle Reactor Linear Gravjet Cooled Gravmag System Cooled Gravmag System Precision Matter Filter Long-range Tractor Beam Drone Bay [Rating: 90] Favorites ----------- Power Improved Deuterium Engine Engine Improved Deuterium Engine Power Core Micro Fission Core Reactor Light Quantum Reactor Propulsion Compact Wheel Treads Improved Treads Leg Carbon-fiber Leg Wheel Compact Wheel Hover Unit Cooled Gravmag System Flight Unit VTOL Module Utility Large Storage Unit Device Seismic Detector Storage Large Storage Unit Processor Enhanced Optical Array Hackware Hacking Suite Protection Light Armor Plating Weapon Autogun Energy Gun Thermic Laser Energy Cannon Nova Cannon Ballistic Gun Autogun Ballistic Cannon Mass Driver Special Weapon Improved Remote Datajack Impact Weapon Power Maul Slashing Weapon Chainsword Piercing Weapon Enhanced Force Lance Build | -11 -10 -9 -8 -7 -6 -6 -6 -5 -5 -5 -5 -4 -4 -4 -4 -3 -3 -2 ------- Run | Yrd Mat Mat Mat Fac Fac Low Low Fac Upp Upp Zhi Pro Fac Upp Upp Res Qua Res Slots Evolved 16 | . . 2 2 2 2 . . 2 . . . . 2 . . 2 . 2 Power 1 | . . . . . . . . . . . . . 1 . . . . . Propulsion 4 | . . . 1 1 . . . . . . . . . . . 1 . 1 Utility 9 | . . . 1 1 2 . . 2 . . . . 1 . . 1 . 1 Weapon 2 | . . 2 . . . . . . . . . . . . . . . . Parts Attached 154 | 7 13 16 16 3 13 1 1 22 22 . 7 3 3 2 . 8 1 16 Power 17 | 1 1 1 2 1 1 . 1 2 1 . . 1 . 1 . 2 . 2 Engine 6 | 1 . 1 1 1 1 . 1 . . . . . . . . . . . Core 8 | . 1 . 1 . . . . 2 1 . . 1 . 1 . 1 . . Reactor 3 | . . . . . . . . . . . . . . . . 1 . 2 Propulsion 41 | 2 4 4 1 2 2 . . 4 5 . 3 . 1 . . 5 . 8 Treads 8 | . . 2 . 2 2 . . . 2 . . . . . . . . . Leg 4 | . . . . . . . . 3 1 . . . . . . . . . Wheel 10 | 2 4 2 1 . . . . 1 . . . . . . . . . . Hover 15 | . . . . . . . . . . . 3 . 1 . . 5 . 6 Flight 4 | . . . . . . . . . 2 . . . . . . . . 2 Utility 49 | 2 3 5 4 . 4 1 . 9 10 . 4 1 2 1 . . . 3 Device 18 | 1 . 2 . . 1 . . 3 4 . 3 1 . 1 . . . 2 Storage 6 | 1 2 1 . . . . . . . . . . 2 . . . . . Processor 3 | . . . . . 1 . . 1 . . . . . . . . . 1 Hackware 8 | . . . . . . . . 3 5 . . . . . . . . . Protection 14 | . 1 2 4 . 2 1 . 2 1 . 1 . . . . . . . Artifact . | . . . . . . . . . . . . . . . . . . . Weapon 47 | 2 5 6 9 . 6 . . 7 6 . . 1 . . . 1 1 3 Energy Gun 8 | . . . 1 . 1 . . 3 2 . . . . . . . . 1 Energy Cannon 3 | . . . . . . . . 1 . . . . . . . 1 . 1 Ballistic Gun 27 | 2 5 6 8 . 4 . . 1 1 . . . . . . . . . Ballistic Cannon 2 | . . . . . . . . . 1 . . 1 . . . . . . Launcher . | . . . . . . . . . . . . . . . . . . . Special Weapon 2 | . . . . . . . . 1 1 . . . . . . . . . Impact Weapon 2 | . . . . . 1 . . 1 . . . . . . . . . . Slashing Weapon 2 | . . . . . . . . . 1 . . . . . . . 1 . Piercing Weapon 1 | . . . . . . . . . . . . . . . . . . 1 Special Melee Weapon . | . . . . . . . . . . . . . . . . . . . Unidentified Prototypes 7 | . . . . . . . . . . . 5 . 1 . . . 1 . Parts Lost 86 | . 2 2 2 1 . . 1 12 18 2 . . 5 4 . 7 14 16 Power 9 | . 1 1 . . . . . . 1 . . . 1 . . 2 1 2 Propulsion 30 | . 1 . . 1 . . 1 4 6 . . . 2 . . 1 6 8 Utility 30 | . . . . . . . . 4 8 1 . . 1 4 . 4 5 3 Weapon 17 | . . 1 2 . . . . 4 3 1 . . 1 . . . 2 3 Highest Loss Streak 13 | . 1 1 1 1 . . 1 5 10 1 . . 5 6 . 6 13 10 To Critical Strikes 1 | . . . . . . . . . . . . . . . . . 1 . Average Backups 11 | 5 9 14 14 14 14 15 14 13 13 4 4 5 7 8 10 7 4 1 Power . | . . 1 1 1 1 1 . 1 . . . . . . 2 . . . Propulsion 1 | 3 3 3 2 1 . . . . . . . . 1 3 3 2 1 . Utility 7 | . 3 7 6 7 9 12 12 10 10 3 3 4 6 5 5 3 2 1 Weapon 1 | 1 1 2 3 2 2 1 1 . 1 1 1 . . . . . . . Tool/Special . | . . . . . . . . . . . . . . . . . . . Unused Backups 20 | . 3 2 6 . 2 . . 1 1 . 1 . . . . 3 . 1 Power 3 | . 1 . 2 . . . . . . . . . . . . . . . Propulsion 8 | . 2 . 2 . . . . . . . 1 . . . . 3 . . Utility 6 | . . 1 1 . 1 . . 1 1 . . . . . . . . 1 Weapon 3 | . . 1 1 . 1 . . . . . . . . . . . . . Tool/Special . | . . . . . . . . . . . . . . . . . . . Average Slot Usage (%) 84 | . 98 99 99 99 99 100 95 86 87 43 47 73 67 51 42 61 37 31 Engine 3 | . 9 8 6 7 6 6 5 2 . . . . . . . . . . Core 2 | . 3 2 2 . . . . 2 4 . . 3 3 . . 5 . . Treads 6 | . . 4 . 9 22 26 22 7 1 . . . . . . . . . Leg 1 | . . . . . . . . 5 7 . . . . . . . . . Wheel 8 | . 27 17 27 19 3 . . 1 3 . . . . . . . . . Hover 3 | . . . . . . . . . . . 7 17 15 10 10 17 12 14 Device 10 | . 10 2 8 15 20 20 20 11 19 . 2 5 1 5 . 6 7 4 Storage 6 | . 14 11 9 7 6 6 6 5 4 . . . 7 8 5 4 3 2 Processor 4 | . . . . . 5 6 6 7 7 5 5 5 5 5 5 4 3 3 Hackware 6 | . . . . . . . . 12 8 31 29 29 26 21 21 16 . . Protection 4 | . 3 8 8 7 6 6 6 5 2 . 1 5 3 . . . . . Energy Gun 2 | . . . 1 7 . 6 6 3 7 . . . . . . . . . Ballistic Gun 17 | . 27 43 34 23 22 20 20 8 5 . . . . . . . . . Peak Build Rating 90 | 7 12 18 28 33 55 56 57 72 81 29 56 64 72 51 38 90 72 84 Average Rating 44 | 4 8 16 22 31 50 55 55 61 69 27 36 61 64 46 38 78 57 47 On Entrance 36 | . 7 12 17 28 33 55 56 55 72 29 22 55 63 47 38 38 72 . Naked Turns 24 | . . . . . . . . . . . . . . . . . 13 11 Heaviest Build 62 | 13 32 42 48 49 61 62 62 62 56 3 7 18 29 18 10 56 46 56 Greatest Support 96 | 32 32 40 48 48 96 96 96 73 50 3 33 33 33 22 22 56 53 59 Greatest Overweight (x) 10 | . . 1 . 1 1 . . 3 3 . . . . . . . 10 . Average Overweight (x) . | . . . . 1 . . . 1 1 . . . . . . . . . Largest Inventory Capacity 25 | 8 15 25 15 15 15 15 15 15 15 5 5 5 10 10 10 10 10 10 Average Capacity 12 | 7 10 15 15 15 15 15 15 15 14 5 5 5 8 10 10 10 9 7 Most Carried 15 | 8 15 15 15 15 15 15 15 15 15 5 5 5 10 10 10 10 6 5 Average Carried 11 | 5 9 14 14 14 14 15 14 13 13 4 4 4 7 8 10 7 4 1 Final Capacity 15 | 8 15 15 15 15 15 15 15 15 5 5 5 5 10 10 10 10 5 5 Final Carried 15 | 8 15 15 15 15 15 15 15 15 4 5 5 5 10 10 10 5 1 1 Class Distribution -------------------- 23% | Tank 20% | Scavenger-Tank 18% | Hacker-Mutant 13% | Mutant 7% | Scavenger-Mutant 6% | Scavenger-Gunner 3% | Hacker-Tank Dominant Class ---------------- Mutant | -10/Materials Tank | -9/Materials Scavenger-Tank | -8/Materials Scavenger-Tank | -7/Factory Scavenger-Tank | -6/Factory Tank | -6/Lower Caves Tank | -6/Lower Caves Hacker-Tank | -5/Factory Scavenger-Mutant | -5/Upper Caves Hacker-Mutant | -5/Upper Caves Hacker-Mutant | -5/Zhirov Hacker-Mutant | -4/Proximity Caves Hacker-Mutant | -4/Factory Hacker-Mutant | -4/Upper Caves Hacker-Mutant | -4/Upper Caves Hacker-Mutant | -3/Research Mutant | -3/Quarantine Mutant | -2/Research Resources | -11 -10 -9 -8 -7 -6 -6 -6 -5 -5 -5 -5 -4 -4 -4 -4 -3 -3 -2 ----------- Run | Yrd Mat Mat Mat Fac Fac Low Low Fac Upp Upp Zhi Pro Fac Upp Upp Res Qua Res Matter Collected 3900 | 298 157 809 891 31 304 261 29 412 346 79 . 84 9 130 . . . 60 Remotely 120 | . . . . . . . . 120 . . . . . . . . . . Salvage Created 4932 | 134 226 847 1083 31 538 639 24 744 539 . . . . . . . . 127 Parts 244 | 9 19 48 65 2 34 13 2 19 22 . . . . . . . . 11 Haulers Intercepted . | . . . . . . . . . . . . . . . . . . . Recyclers Shooed 1 | . . 1 . . . . . . . . . . . . . . . . Parts Field Recycled . | . . . . . . . . . . . . . . . . . . . Retrieved Matter . | . . . . . . . . . . . . . . . . . . . Parts Self-Destructed 30 | . . . . . . 13 1 . 16 . . . . . . . . . Prevented 5 | . . . . . . . . . . . . . . 5 . . . . Kills | -11 -10 -9 -8 -7 -6 -6 -6 -5 -5 -5 -5 -4 -4 -4 -4 -3 -3 -2 ------- Run | Yrd Mat Mat Mat Fac Fac Low Low Fac Upp Upp Zhi Pro Fac Upp Upp Res Qua Res Combat Hostiles Destroyed 83 | . 9 12 15 1 7 12 1 11 13 . . . . . . . . 2 Melee 2 | . . . . . . . . . . . . . . . . . . 2 Guns 77 | . 9 12 15 1 7 12 1 10 10 . . . . . . . . . Cannons 1 | . . . . . . . . . 1 . . . . . . . . . Classes Destroyed 14 | 2 3 4 1 . 1 2 . . 1 . . . . . . . . . Worker 4 | . . 2 2 . . . . . . . . . . . . . . . Builder 3 | . . 1 1 . 1 . . . . . . . . . . . . . Tunneler 4 | 4 . . . . . . . . . . . . . . . . . . Recycler 8 | 1 . 2 3 . 1 . . 1 . . . . . . . . . . Operator 4 | . . 1 2 . 1 . . . . . . . . . . . . . Watcher 3 | . 1 . 1 . 1 . . . . . . . . . . . . . Swarmer 15 | . 6 . 2 . . . . . 7 . . . . . . . . . Grunt 39 | . 3 8 6 . 2 11 . 7 2 . . . . . . . . . Brawler 1 | . . . . . . 1 . . . . . . . . . . . . Sentry 13 | . . 4 5 . 2 . . 1 1 . . . . . . . . . Hunter 3 | . . . 2 1 . . . . . . . . . . . . . . Programmer 11 | . . . . . 3 . 1 3 2 . . . . . . . . 2 Samaritan 1 | . . . . . . 1 . . . . . . . . . . . . Mutant 1 | . . . . . . . . . 1 . . . . . . . . . Best Kill Streak 5 | 5 2 5 4 1 3 4 1 3 5 . . . . . . . . 2 Combat Bots Only 5 | . 2 3 4 1 2 4 1 3 5 . . . . . . . . 2 Max Kills in Single Turn 2 | 1 1 2 2 1 2 2 1 1 2 . . . . . . . . 1 Gunslinging 1 | . . . . . . 1 . . . . . . . . . . . . Exploded . | . . . . . . . . . . . . . . . . . . . Melee 1 | . . . . . . . . . . . . . . . . . . 1 Uniques/NPCs Destroyed . | . . . . . . . . . . . . . . . . . . . Combat | -11 -10 -9 -8 -7 -6 -6 -6 -5 -5 -5 -5 -4 -4 -4 -4 -3 -3 -2 -------- Run | Yrd Mat Mat Mat Fac Fac Low Low Fac Upp Upp Zhi Pro Fac Upp Upp Res Qua Res Hostile Shots Fired 1095 | . 71 48 78 8 46 42 12 140 156 24 . 19 55 52 . 53 94 197 Missed 347 | . 16 12 23 . 16 14 5 31 35 9 . 14 19 29 . 20 29 75 Hits 748 | . 55 36 55 8 30 28 7 109 121 15 . 5 36 23 . 33 65 122 Melee 4 | . . . . . . . . . . . . . . . . . 4 . Projectile 744 | . 55 36 55 8 30 28 7 109 121 15 . 5 36 23 . 33 61 122 AOE 2 | . . . . . . . . . . . . . 2 . . . . . Critical Strikes 32 | . . . 4 . . . . 7 4 1 . 1 5 . . . 9 1 Actively Blocked 1 | . . . . . . . . . . . . 1 . . . . . . Part Disruptions 1 | . . . . . . . . . 1 . . . . . . . . . Damage Taken 14081 | . 542 489 820 127 314 537 105 2125 2340 272 . 119 895 449 . 888 1426 2633 Core 4056 | . 131 72 93 12 39 36 14 275 361 216 . 26 203 140 . 252 731 1455 Absorbed by Shields . | . . . . . . . . . . . . . . . . . . . Redirected to Shielding 211 | . . . . . . . . 51 . . . 29 131 . . . . . Ignored by Resistances 73 | . . . . . . . . . 73 . . . . . . . . . Regen/Repaired (Parts) 58 | . . . 58 . . . . . . . . . . . . . . . Core Remaining (%) 67 | 100 47 82 83 98 . . 89 . . . . 10 . . 70 . 24 . Volleys Fired 332 | 14 46 37 53 4 15 26 5 68 32 . . . . . . 31 . 1 Largest 4 | 2 2 4 4 4 4 4 4 3 4 . . . . . . 1 . 1 Hottest 203 | 40 40 92 146 146 163 163 163 93 203 . . . . . . 113 . 120 Shots Fired 881 | 28 92 139 210 16 60 105 19 104 75 . . 1 . . . 31 . 1 Gun 842 | 28 92 139 210 16 60 105 19 103 70 . . . . . . . . . Cannon 38 | . . . . . . . . . 5 . . 1 . . . 31 . 1 Launcher . | . . . . . . . . . . . . . . . . . . . Special 1 | . . . . . . . . 1 . . . . . . . . . . Kinetic 730 | 28 92 139 201 12 58 79 16 65 39 . . 1 . . . . . . Thermal 150 | . . . 9 4 2 26 3 38 36 . . . . . . 31 . 1 Explosive . | . . . . . . . . . . . . . . . . . . . Electromagnetic . | . . . . . . . . . . . . . . . . . . . Robot Hit Streak 20 | 7 17 15 15 10 9 20 4 12 10 . . . . . . 1 . 1 Robot Miss Streak 7 | 2 7 3 4 2 6 5 6 3 3 . . 1 . . . 2 . . Penetration Max 1 | . . . 1 . 1 1 . . 1 . . . . . . . . . Secondary Targets 9 | . 1 1 . . . 4 . 1 2 . . . . . . . . . Max Gunslinging Chain 1 | . 1 1 . . . 1 . 1 1 . . . . . . . . . Shots Hit Robots 562 | 19 54 86 127 12 29 77 15 77 53 . . . . . . 1 4 8 Core Hits 262 | 8 22 31 46 3 29 62 5 33 19 . . . 1 . . . . 3 Critical Kills 7 | . . . 2 . 2 2 . . 1 . . . . . . . . . Critical Parts Destroyed 6 | . . . . . 1 1 . 2 2 . . . . . . . . . Critical Strikes 25 | . . . 3 1 3 4 . 4 6 . . . . . . . 2 2 Burn 8 | . . . 1 1 . 1 . 2 3 . . . . . . . . . Destroy 13 | . . . 2 . 3 3 . 2 3 . . . . . . . . . Sever 2 | . . . . . . . . . . . . . . . . . 2 . Impale 2 | . . . . . . . . . . . . . . . . . . 2 Melee Attacks 52 | . . . . . 26 . . 4 1 1 . . . . . . 10 10 Impact 30 | . . . . . 26 . . 4 . . . . . . . . . . Slashing 12 | . . . . . . . . . 1 1 . . . . . . 10 . Piercing 10 | . . . . . . . . . . . . . . . . . . 10 Sneak Attacks . | . . . . . . . . . . . . . . . . . . . Combat Hostiles . | . . . . . . . . . . . . . . . . . . . Follow-up Attacks . | . . . . . . . . . . . . . . . . . . . Damage Inflicted 10267 | 174 451 1324 1863 158 783 1704 343 1650 1237 . . . 55 . . 37 147 341 Guns 9589 | 174 451 1324 1863 158 783 1704 343 1650 1139 . . . . . . . . . Cannons 187 | . . . . . . . . . 98 . . . . . . 37 . 52 Explosions . | . . . . . . . . . . . . . . . . . . . Melee 412 | . . . . . . . . . . . . . . . . . 129 283 Ramming 79 | . . . . . . . . . . . . . 55 . . . 18 6 Kinetic 8067 | 174 451 1324 1752 91 783 1311 261 1179 741 . . . . . . . . . Thermal 1709 | . . . 111 67 . 393 82 471 496 . . . . . . 37 . 52 Explosive . | . . . . . . . . . . . . . . . . . . . Electromagnetic . | . . . . . . . . . . . . . . . . . . . Impact . | . . . . . . . . . . . . . . . . . . . Slashing 129 | . . . . . . . . . . . . . . . . . 129 . Piercing 283 | . . . . . . . . . . . . . . . . . . 283 Highest Corruption 19 | . . . 2 . 1 1 3 3 10 10 10 10 2 2 2 5 19 15 Average Corruption 4 | . . . 2 . 1 1 2 2 8 10 10 10 1 2 2 3 6 10 Corruption Purged . | . . . . . . . . . . . . . . . . . . . Corruption Blocked . | . . . . . . . . . . . . . . . . . . . Effects 133 | . . . 14 . . 5 3 13 47 12 6 13 1 4 . . 10 5 Message Errors 39 | . . . 6 . . 2 . 3 13 3 1 2 . 1 . . 7 1 Matter Fused 30 | . . . 4 . . 1 . 2 9 1 2 6 . 1 . . 1 3 Heat Flow Errors 13 | . . . 1 . . 1 1 2 5 2 . . 1 . . . . . Energy Discharges 13 | . . . . . . . . 2 4 3 1 . . 1 . . 2 . Parts Rejected 2 | . . . . . . . 1 1 . . . . . . . . . . Parts Fused 2 | . . . . . . . . . 2 . . . . . . . . . Data Loss (minor) 9 | . . . 1 . . . . 1 3 1 1 1 . 1 . . . . Data Loss (major) 12 | . . . 1 . . . . . 5 1 1 3 . . . . . 1 Misfires 5 | . . . . . . 1 1 . 2 . . 1 . . . . . . Alerts 3 | . . . . . . . . 1 2 . . . . . . . . . Misdirections 2 | . . . . . . . . . 1 1 . . . . . . . . Weapon Failures 3 | . . . 1 . . . . 1 1 . . . . . . . . . Overload Shots . | . . . . . . . . . . . . . . . . . . . Overflow Damage . | . . . . . . . . . . . . . . . . . . . Projectiles . | . . . . . . . . . . . . . . . . . . . Explosions . | . . . . . . . . . . . . . . . . . . . Melee . | . . . . . . . . . . . . . . . . . . . Knockbacks 1 | . . . . . . . . . 1 . . . . . . . . . Impact . | . . . . . . . . . . . . . . . . . . . Kinetic 1 | . . . . . . . . . 1 . . . . . . . . . Secondary . | . . . . . . . . . . . . . . . . . . . Self-Inflicted Damage 37 | . . . . . . . . . . . . . 26 . . . 8 3 Shots . | . . . . . . . . . . . . . . . . . . . Rammed 14 | . . . . . . . . . . . . . 5 . . . 7 2 Targets Rammed 14 | . . . . . . . . . . . . . 5 . . . 7 2 Kicked . | . . . . . . . . . . . . . . . . . . . Crushed . | . . . . . . . . . . . . . . . . . . . Highest Temperature 492 | . 25 492 121 . 21 131 195 200 222 158 . . . . . 373 . 32 Average Temperature 97 | . 9 151 18 . 9 51 48 65 59 86 . . . . . 176 . 24 Received Heat Transfer 3097 | . 123 219 306 . 72 255 . 870 540 . . 30 131 30 . 60 407 54 Effects 16 | . . 13 . . . . . . . . . . . . . 3 . . Shutdowns 4 | . . 2 . . . . . . . . . . . . . 2 . . Interference 10 | . . 9 . . . . . . . . . . . . . 1 . . Short Circuit 1 | . . 1 . . . . . . . . . . . . . . . . Damage (major) 1 | . . 1 . . . . . . . . . . . . . . . . Siege Activations . | . . . . . . . . . . . . . . . . . . . Martial Activations . | . . . . . . . . . . . . . . . . . . . Shielding Activations . | . . . . . . . . . . . . . . . . . . . Robots Disrupted . | . . . . . . . . . . . . . . . . . . . Combat Hostiles . | . . . . . . . . . . . . . . . . . . . Robots Corrupted . | . . . . . . . . . . . . . . . . . . . Combat Hostiles . | . . . . . . . . . . . . . . . . . . . Parts Fried . | . . . . . . . . . . . . . . . . . . . Impact Corruptions . | . . . . . . . . . . . . . . . . . . . Robots Melted 3 | . . . . . . . . 1 2 . . . . . . . . . Combat Hostiles 3 | . . . . . . . . 1 2 . . . . . . . . . Parts Melted 11 | . . . . . . 1 . 6 4 . . . . . . . . . Heat Transferred 4511 | . . . 333 222 . 1000 150 1184 1548 . . . . . . 37 . 37 Parts Sabotaged . | . . . . . . . . . . . . . . . . . . . Parts Stolen . | . . . . . . . . . . . . . . . . . . . Parts Stripped . | . . . . . . . . . . . . . . . . . . . Power Chain Reactions . | . . . . . . . . . . . . . . . . . . . Alert | -11 -10 -9 -8 -7 -6 -6 -6 -5 -5 -5 -5 -4 -4 -4 -4 -3 -3 -2 ------- Run | Yrd Mat Mat Mat Fac Fac Low Low Fac Upp Upp Zhi Pro Fac Upp Upp Res Qua Res Maximum Alert Level . | . . . . . . . . . . . . . . . . . . . Low Security (%) 100 | 100 100 100 100 100 100 . . 100 . . . . 100 . . 100 100 100 Level 1 . | . . . . . . . . . . . . . . . . . . . Level 2 . | . . . . . . . . . . . . . . . . . . . Level 3 . | . . . . . . . . . . . . . . . . . . . Level 4 . | . . . . . . . . . . . . . . . . . . . Level 5 . | . . . . . . . . . . . . . . . . . . . High Security . | . . . . . . . . . . . . . . . . . . . Max Security . | . . . . . . . . . . . . . . . . . . . Peak Influence 141 | 10 62 141 96 35 66 . . 117 . . . . 45 . . 45 45 55 Initial 43 | . 3 5 42 28 . . . . . . . . . . . 43 16 . Average 25 | 2 19 34 45 6 15 . . 29 . . . . 9 . . 14 6 11 Influence Increases 3275 | 25 239 361 492 50 254 360 30 388 320 30 . 15 105 135 . 161 75 235 Destroy 0b10 Robot/C 1640 | . 180 240 300 20 140 240 20 220 240 . . . . . . . . 40 Destroy 0b10 Robot/NC 130 | 25 5 30 45 . 20 . . 5 . . . . . . . . . . Destroy Leader 386 | . 32 80 92 10 62 30 10 50 20 . . . . . . . . . Successful Hack 21 | . 7 7 2 5 . . . . . . . . . . . . . . Disable Machine 60 | . . . 15 15 15 . . . . . . . . . . . 15 . Destroy Structure 63 | . . 4 8 . 17 . . 8 . . . . . . . 26 . . Partial Spotted 150 | . 15 . . . . . . . . . . . 75 . . 30 15 15 Lose Combat Pursuer 825 | . . . 30 . . 90 . 105 60 30 . 15 30 135 . 105 45 180 Influence Decreases 3248 | 20 230 274 531 112 235 331 78 388 264 81 5 15 105 53 17 196 105 208 Entered New Map 191 | . 2 9 59 34 . 8 10 . . 11 5 . . . 17 22 14 . Time Decay 2516 | 20 218 245 452 68 235 323 58 252 162 60 . 15 55 53 . 133 61 106 Lost Part 515 | . 10 20 20 10 . . 10 110 102 10 . . 50 . . 41 30 102 Purge Threat 26 | . . . . . . . . 26 . . . . . . . . . . Squads Dispatched 21 | . . 2 2 . 3 . . 3 . . . . 3 . . 2 1 5 Investigation 3 | . . 1 . . . . . 1 . . . . 1 . . . . . Extermination 8 | . . . . . 2 . . 2 . . . . . . . 1 . 3 Reinforcement 10 | . . 1 2 . 1 . . . . . . . 2 . . 1 1 2 Assault . | . . . . . . . . . . . . . . . . . . . Garrison . | . . . . . . . . . . . . . . . . . . . Intercept . | . . . . . . . . . . . . . . . . . . . Searches Triggered . | . . . . . . . . . . . . . . . . . . . Construction Impeded . | . . . . . . . . . . . . . . . . . . . Haulers Reinforced 1 | . . . . . . . . . . . . . 1 . . . . . Active Scanning Responses . | . . . . . . . . . . . . . . . . . . . Cargo Convoy Interrupts . | . . . . . . . . . . . . . . . . . . . Stealth | -11 -10 -9 -8 -7 -6 -6 -6 -5 -5 -5 -5 -4 -4 -4 -4 -3 -3 -2 --------- Run | Yrd Mat Mat Mat Fac Fac Low Low Fac Upp Upp Zhi Pro Fac Upp Upp Res Qua Res Distress Signals 9 | . 2 1 3 . 1 . . . . . . . 1 . . . 1 . Communications Jammed . | . . . . . . . . . . . . . . . . . . . Distress Signals . | . . . . . . . . . . . . . . . . . . . Times Spotted 223 | . 14 15 27 2 9 15 1 19 18 4 . 6 16 12 4 14 15 32 Peak Tracking Total 15 | . 4 3 4 1 2 4 1 5 7 3 . 5 12 8 4 7 8 15 Tactical Retreats 26 | . . . 2 . . 3 . 3 1 2 . 1 1 4 . 3 1 5 Traps | -11 -10 -9 -8 -7 -6 -6 -6 -5 -5 -5 -5 -4 -4 -4 -4 -3 -3 -2 ------- Run | Yrd Mat Mat Mat Fac Fac Low Low Fac Upp Upp Zhi Pro Fac Upp Upp Res Qua Res Traps Triggered 3 | . 1 1 1 . . . . . . . . . . . . . . . Indirectly . | . . . . . . . . . . . . . . . . . . . Trap Hack Attempts . | . . . . . . . . . . . . . . . . . . . Triggered . | . . . . . . . . . . . . . . . . . . . Disarmed 4 | . . . . . . . . . . . . . . . . 4 . . Reprogrammed . | . . . . . . . . . . . . . . . . . . . Reused . | . . . . . . . . . . . . . . . . . . . Traps Extracted . | . . . . . . . . . . . . . . . . . . . Installed . | . . . . . . . . . . . . . . . . . . . Triggered . | . . . . . . . . . . . . . . . . . . . Machines | -11 -10 -9 -8 -7 -6 -6 -6 -5 -5 -5 -5 -4 -4 -4 -4 -3 -3 -2 ---------- Run | Yrd Mat Mat Mat Fac Fac Low Low Fac Upp Upp Zhi Pro Fac Upp Upp Res Qua Res Machines Disabled 7 | . . . 1 1 1 . . . 3 . . . . . . . 1 . Max in Single Turn 1 | . . . 1 1 1 . . . 1 . . . . . . . 1 . Garrison Access 1 | . . . . . . . . 1 . . . . . . . . . . Machines Repaired . | . . . . . . . . . . . . . . . . . . . Machines Dismantled 1 | . . . . . . . . . 1 . . . . . . . . . Machines Sabotaged . | . . . . . . . . . . . . . . . . . . . Overloaded Fab Kills . | . . . . . . . . . . . . . . . . . . . Hacking | -11 -10 -9 -8 -7 -6 -6 -6 -5 -5 -5 -5 -4 -4 -4 -4 -3 -3 -2 --------- Run | Yrd Mat Mat Mat Fac Fac Low Low Fac Upp Upp Zhi Pro Fac Upp Upp Res Qua Res Machines Accessed 30 | . 3 5 3 2 1 . . 3 . . 9 . 1 1 . 2 . . Terminals 18 | . 3 5 2 2 1 . . 2 . . . . . 1 . 2 . . Fabricators 1 | . . . . . . . . . . . . . 1 . . . . . Repair Stations 1 | . . . 1 . . . . . . . . . . . . . . . Recycling Units . | . . . . . . . . . . . . . . . . . . . Scanalyzers . | . . . . . . . . . . . . . . . . . . . Garrison Access 1 | . . . . . . . . 1 . . . . . . . . . . Total Hacks 103 | . 9 14 6 3 1 . . 9 . . 48 . 3 4 . 6 . . Successful 84 | . 5 6 5 1 1 . . 5 . . 48 . 3 4 . 6 . . Failed 19 | . 4 8 1 2 . . . 4 . . . . . . . . . . Catastrophic 1 | . . . 1 . . . . . . . . . . . . . . . Database Lockouts . | . . . . . . . . . . . . . . . . . . . Manual 32 | . 8 12 2 3 1 . . 4 . . . . . . . 2 . . Terminals 46 | . 9 14 2 3 1 . . 7 . . . . . 4 . 6 . . Fabricators 3 | . . . . . . . . . . . . . 3 . . . . . Repair Stations 4 | . . . 4 . . . . . . . . . . . . . . . Recycling Units . | . . . . . . . . . . . . . . . . . . . Scanalyzers . | . . . . . . . . . . . . . . . . . . . Garrison Access 2 | . . . . . . . . 2 . . . . . . . . . . Terminal Hacks 64 | . 2 3 . . . . . 2 . . 48 . . 4 . 5 . . Record 40 | . . . . . . . . . . . 36 . . 4 . . . . Part Schematic 4 | . . . . . . . . . . . 4 . . . . . . . Robot Analysis 4 | . . . . . . . . . . . 4 . . . . . . . Prototype ID Bank 4 | . . . . . . . . . . . 4 . . . . . . . Open Door 1 | . . . . . . . . . . . . . . . . 1 . . Branch Access Points 1 | . 1 . . . . . . . . . . . . . . . . . Alert Level 2 | . . . . . . . . 1 . . . . . . . 1 . . Unreport Threat 1 | . . . . . . . . 1 . . . . . . . . . . Locate Traps 4 | . 1 2 . . . . . . . . . . . . . 1 . . Disarm Traps 2 | . . 1 . . . . . . . . . . . . . 1 . . Zone Layout 1 | . . . . . . . . . . . . . . . . 1 . . Fabricator Hacks 3 | . . . . . . . . . . . . . 3 . . . . . Network Status 1 | . . . . . . . . . . . . . 1 . . . . . Load Schematic 1 | . . . . . . . . . . . . . 1 . . . . . Build 1 | . . . . . . . . . . . . . 1 . . . . . Repair Station Hacks 4 | . . . 4 . . . . . . . . . . . . . . . Scan Component 2 | . . . 2 . . . . . . . . . . . . . . . Repair 2 | . . . 2 . . . . . . . . . . . . . . . Recycling Unit Hacks . | . . . . . . . . . . . . . . . . . . . Scanalyzer . | . . . . . . . . . . . . . . . . . . . Garrison Access Hacks 1 | . . . . . . . . 1 . . . . . . . . . . Seal Access 1 | . . . . . . . . 1 . . . . . . . . . . Unauthorized Hacks 12 | . 3 3 1 1 1 . . 2 . . . . . . . 1 . . Terminals 12 | . 3 3 1 1 1 . . 2 . . . . . . . 1 . . Botnet 12 | . 3 3 1 1 1 . . 2 . . . . . . . 1 . . Fabricators . | . . . . . . . . . . . . . . . . . . . Repair Stations . | . . . . . . . . . . . . . . . . . . . Recycling Units . | . . . . . . . . . . . . . . . . . . . Scanalyzers . | . . . . . . . . . . . . . . . . . . . Garrison Access . | . . . . . . . . . . . . . . . . . . . Data Cores Recovered 1 | . . . 1 . . . . . . . . . . . . . . . Used . | . . . . . . . . . . . . . . . . . . . Hacking Detections 14 | . 3 3 3 2 1 . . 1 . . . . 1 . . . . . Full Trace Events 4 | . . 2 . . . . . 1 . . . . 1 . . . . . Feedback Events . | . . . . . . . . . . . . . . . . . . . Feedback Blocked . | . . . . . . . . . . . . . . . . . . . Robot Schematics Acquired . | . . . . . . . . . . . . . . . . . . . Robots Built . | . . . . . . . . . . . . . . . . . . . Authchips . | . . . . . . . . . . . . . . . . . . . Time . | . . . . . . . . . . . . . . . . . . . Total Robot Build Rating . | . . . . . . . . . . . . . . . . . . . Part Schematics Acquired 4 | . . . . . . . . . . . 4 . . . . . . . Parts Built 1 | . . . . . . . . . . . . . 1 . . . . . Authchips . | . . . . . . . . . . . . . . . . . . . Time 187 | . . . . . . . . . . . . . 187 . . . . . Total Part Build Rating 7 | . . . . . . . . . . . . . 7 . . . . . Parts Repaired 2 | . . . 2 . . . . . . . . . . . . . . . Time 58 | . . . 58 . . . . . . . . . . . . . . . Parts Recycled . | . . . . . . . . . . . . . . . . . . . Recycled Matter . | . . . . . . . . . . . . . . . . . . . Retrieved Matter . | . . . . . . . . . . . . . . . . . . . Retrieved Components . | . . . . . . . . . . . . . . . . . . . Parts Scanalyzed . | . . . . . . . . . . . . . . . . . . . Part Schematics Acquired . | . . . . . . . . . . . . . . . . . . . Parts Damaged . | . . . . . . . . . . . . . . . . . . . Bothacking | -11 -10 -9 -8 -7 -6 -6 -6 -5 -5 -5 -5 -4 -4 -4 -4 -3 -3 -2 ------------ Run | Yrd Mat Mat Mat Fac Fac Low Low Fac Upp Upp Zhi Pro Fac Upp Upp Res Qua Res Used RIF Installer . | . . . . . . . . . . . . . . . . . . . Robots Hacked . | . . . . . . . . . . . . . . . . . . . Non-combat . | . . . . . . . . . . . . . . . . . . . Combat . | . . . . . . . . . . . . . . . . . . . Robot Hacks Applied . | . . . . . . . . . . . . . . . . . . . Relay Couplers Released . | . . . . . . . . . . . . . . . . . . . Fabnet Peak Effective % . | . . . . . . . . . . . . . . . . . . . Robots Rewired . | . . . . . . . . . . . . . . . . . . . Allies Hacked . | . . . . . . . . . . . . . . . . . . . Hacks Repelled . | . . . . . . . . . . . . . . . . . . . Allies | -11 -10 -9 -8 -7 -6 -6 -6 -5 -5 -5 -5 -4 -4 -4 -4 -3 -3 -2 -------- Run | Yrd Mat Mat Mat Fac Fac Low Low Fac Upp Upp Zhi Pro Fac Upp Upp Res Qua Res Total Allies . | . . . . . . . . . . . . . . . . . . . Largest Group . | . . . . . . . . . . . . . . . . . . . Highest-Rated Group . | . . . . . . . . . . . . . . . . . . . Highest-Rated Ally . | . . . . . . . . . . . . . . . . . . . Total Orders 2 | . . . . . . . . . . . . 2 . . . . . . EXPLORE 1 | . . . . . . . . . . . . 1 . . . . . . RETURN 1 | . . . . . . . . . . . . 1 . . . . . . Ally Attacks . | . . . . . . . . . . . . . . . . . . . Total Damage . | . . . . . . . . . . . . . . . . . . . Kills . | . . . . . . . . . . . . . . . . . . . Allies Corrupted . | . . . . . . . . . . . . . . . . . . . Allies Melted . | . . . . . . . . . . . . . . . . . . . Intel | -11 -10 -9 -8 -7 -6 -6 -6 -5 -5 -5 -5 -4 -4 -4 -4 -3 -3 -2 ------- Run | Yrd Mat Mat Mat Fac Fac Low Low Fac Upp Upp Zhi Pro Fac Upp Upp Res Qua Res Active Infowar (turns) 8122 | 7 512 . . 329 980 1075 64 1210 1427 299 169 468 200 401 19 385 303 274 Optics 6980 | . . . . . 960 1075 64 1210 1427 299 169 468 200 401 19 385 303 . Seismic 4053 | 7 512 . . 329 980 1075 64 562 250 . . . . . . . . 274 Jamming 977 | . . . . . . . . 352 624 . . . . 1 . . . . ECM 67 | . . . . . . . . . . . . 49 . 18 . . . . Robot Analysis Total 4 | . . . . . . . . . . . 4 . . . . . . . Derelict Logs Recovered 8 | . . . . . . 1 . . 1 3 . 1 . 2 . . . . Drone Launches 2 | . . . . . . . . . . . . 1 . . . . 1 . Drone Recoveries . | . . . . . . . . . . . . . . . . . . . Exploration | -11 -10 -9 -8 -7 -6 -6 -6 -5 -5 -5 -5 -4 -4 -4 -4 -3 -3 -2 ------------- Run | Yrd Mat Mat Mat Fac Fac Low Low Fac Upp Upp Zhi Pro Fac Upp Upp Res Qua Res Turns Passed 11527 | 96 686 1398 1233 329 980 1075 166 1304 1427 299 169 468 200 401 19 385 335 557 Spaces Moved 8812 | 44 478 790 679 242 505 548 90 633 859 591 222 875 404 593 41 487 147 584 Core 901 | 10 . . . . . . . . 72 591 162 . . . . . 23 43 Treads 1419 | . . 112 . . 356 548 90 292 21 . . . . . . . . . Legs 200 | . . . . . . . . 37 163 . . . . . . . . . Wheels 3167 | 34 478 678 679 242 149 . . 304 603 . . . . . . . . . Hover 3108 | . . . . . . . . . . . 60 875 404 593 41 487 124 524 Flight 17 | . . . . . . . . . . . . . . . . . . 17 Fastest Speed 32 | 50 100 115 100 115 115 156 155 130 50 50 42 42 42 46 46 32 33 40 Average Speed 94 | 88 100 122 100 115 143 156 155 162 143 50 48 42 42 46 46 38 88 55 Slowest Speed 550 | 100 100 240 100 115 156 156 156 330 260 50 50 46 46 46 46 46 550 70 Overloaded Moves . | . . . . . . . . . . . . . . . . . . . Propulsion Burnouts . | . . . . . . . . . . . . . . . . . . . Robots Hopped . | . . . . . . . . . . . . . . . . . . . Potential Cave-ins 9 | . . . . . . . . . . . . . . . . 7 2 . Cave-ins Triggered . | . . . . . . . . . . . . . . . . . . . Teleports 1 | . . . . . . . . . . . 1 . . . . . . . Exploration Rate (%) 40 | 5 89 31 53 6 13 71 13 16 86 80 63 88 14 72 10 12 26 14 Regions Visited 18 Branch Regions 9 Pre-discovered Areas 4 | . . . . . . . . . . 1 3 . . . . . . . Known Exits Taken 2 | . . . . . . . . . . . . . . . 1 1 . . Unknown Exits Taken 16 | 1 1 1 1 1 1 1 1 1 1 1 1 1 1 1 . . 1 . Scrap Searched 11 | . . . . . . 3 1 . 4 1 . 2 . . . . . . Spaces Dug 50 | . . . . . 17 . . 4 2 1 . . . . . 26 . . Terrain Destroyed 68 | . . . 1 . 19 3 . 5 9 1 . 1 . . . 29 . . Melee 23 | . . . . . 17 . . 4 1 1 . . . . . . . . Projectile 45 | . . . 1 . 2 3 . 1 8 . . 1 . . . 29 . . AOE . | . . . . . . . . . . . . . . . . . . . Terrain Rammed . | . . . . . . . . . . . . . . . . . . . Walls Destroyed . | . . . . . . . . . . . . . . . . . . . Machines Disabled . | . . . . . . . . . . . . . . . . . . . Actions | -11 -10 -9 -8 -7 -6 -6 -6 -5 -5 -5 -5 -4 -4 -4 -4 -3 -3 -2 --------- Run | Yrd Mat Mat Mat Fac Fac Low Low Fac Upp Upp Zhi Pro Fac Upp Upp Res Qua Res Total 11355 | 78 614 1158 1121 282 680 706 105 806 992 592 280 967 431 721 40 653 337 792 Wait 1736 | . 48 285 327 28 94 131 7 56 57 . 41 88 14 123 . 114 162 161 Move 8794 | 43 477 789 678 241 504 547 89 632 858 590 221 874 403 592 40 486 146 584 Hop . | . . . . . . . . . . . . . . . . . . . Pick Up 144 | 14 17 14 21 4 10 . 2 17 7 1 5 1 5 2 . 4 3 17 Fast Attach 33 | 1 2 3 3 . 3 . . 4 4 . 3 2 3 . . 5 . . Attach 90 | 6 2 5 4 3 1 . 1 13 16 . 5 . . 3 . 7 7 17 Detach 5 | . . . . . . . . . 1 . 1 . . 1 . 1 1 . Swap 63 | . 10 14 11 1 15 1 . 5 3 . 2 1 . . . . . . Drop 88 | . 12 11 24 1 12 1 1 7 10 . 1 1 1 . . 5 1 . Fire 332 | 14 46 37 53 4 15 26 5 68 32 . . . . . . 31 . 1 Melee 52 | . . . . . 26 . . 4 1 1 . . . . . . 10 10 Ram 14 | . . . . . . . . . . . . . 5 . . . 7 2 Kick . | . . . . . . . . . . . . . . . . . . . Crush . | . . . . . . . . . . . . . . . . . . . Escape Stasis . | . . . . . . . . . . . . . . . . . . . Rewire 1 | . . . . . . . . . . . 1 . . . . . . . Trap . | . . . . . . . . . . . . . . . . . . . Miscellaneous 3 | . . . . . . . . . 3 . . . . . . . . . Route ------- -11/Scrapyard -10/Materials (discovered 5 exits: *Mat x3 / *Min x2) -9/Materials -8/Materials -7/Factory -6/Factory -6/Lower Caves -6/Lower Caves -5/Factory -5/Upper Caves -5/Upper Caves -5/Zhirov -4/Proximity Caves -4/Factory (discovered 2 exits: Res / *Upp) -4/Upper Caves -4/Upper Caves -3/Research -3/Quarantine -2/Research History --------- Turn | Location | Event 23 | -11/Scrapyard | Discovered new exit (range 16) 97 | -11/Scrapyard | Entered Materials 156 | -10/Materials | Discovered new exit (range 15) 316 | -10/Materials | Build established: Mutant 392 | -10/Materials | Discovered new exit (range 14) 423 | -10/Materials | Discovered new exit (range 9) 433 | -10/Materials | Identified exit to Mines 661 | -10/Materials | Core integrity fell below 50% 733 | -10/Materials | Discovered new exit (range 16) 783 | -10/Materials | Entered another Materials area 783 | -9/Materials | Evolved 2 slots: Weapon x2 1107 | -9/Materials | Build established: Tank 1693 | -9/Materials | Discovered new exit (range 10) 2153 | -9/Materials | Build established: Scavenger-Gunner 2181 | -9/Materials | Entered another Materials area 2181 | -8/Materials | Evolved 2 slots: Propulsion x1, Utility x1 2484 | -8/Materials | Build established: Scavenger-Tank 2908 | -8/Materials | Discovered new exit (range 16) 2978 | -8/Materials | Repaired Cooling System 3006 | -8/Materials | Repaired Seismic Detector 3414 | -8/Materials | Entered Factory 3414 | -7/Factory | Evolved 2 slots: Propulsion x1, Utility x1 3735 | -7/Factory | Discovered new exit (range 4) 3743 | -7/Factory | Entered another Factory area 3743 | -6/Factory | Evolved 2 slots: Utility x2 4633 | -6/Factory | Discovered new exit (range 2) 4723 | -6/Factory | Entered Lower Caves 4891 | -6/Lower Caves | Build established: Tank 5197 | -6/Lower Caves | Spotted B-75 Beast 5329 | -6/Lower Caves | Encountered a Warlord checkpoint 5724 | -6/Lower Caves | Discovered new exit (range 10) 5798 | -6/Lower Caves | Entered another Lower Caves area 5941 | -6/Lower Caves | Discovered new exit (range 10) 5964 | -6/Lower Caves | Entered Factory 5964 | -5/Factory | Evolved 2 slots: Utility x2 6651 | -5/Factory | Lost 3 parts (1n1u1w) 6725 | -5/Factory | Lost 5 parts (1n2u2w) 6948 | -5/Factory | Discovered new exit (range 10) 7268 | -5/Factory | Entered Upper Caves 7309 | -5/Upper Caves | Attracted the attention of an 0b10 checkpoint 7661 | -5/Upper Caves | System corruption reached 10% 7691 | -5/Upper Caves | Lost 3 parts (3n) 7892 | -5/Upper Caves | Lost 5 parts (3u2w) 8166 | -5/Upper Caves | Encountered a Warlord checkpoint 8323 | -5/Upper Caves | Build established: Scavenger-Mutant 8345 | -5/Upper Caves | Learned location of 1 exit from Factory 8477 | -5/Upper Caves | Attacked by a delusional Derelict stockpiling parts 8601 | -5/Upper Caves | Attracted the attention of an 0b10 base 8645 | -5/Upper Caves | Core integrity fell below 50% 8685 | -5/Upper Caves | Lost 10 parts (1p3n5u1w) 8692 | -5/Upper Caves | Discovered new exit (range 6) 8695 | -5/Upper Caves | Entered another Upper Caves area 8706 | -5/Upper Caves | Learned location of Armory (-3) 8735 | -5/Upper Caves | Learned Factory trap positions 8888 | -5/Upper Caves | Learned Factory garrison access intel 8987 | -5/Upper Caves | Core integrity fell below 20% 8988 | -5/Upper Caves | Discovered new exit (range 12) 8994 | -5/Upper Caves | Entered Zhirov 8994 | -5/Zhirov | Discovered new exit (range 3) 9004 | -5/Zhirov | Met Zhirov 9015 | -5/Zhirov | Learned location of Quarantine (-3) 9015 | -5/Zhirov | Learned location of Testing (-2) 9015 | -5/Zhirov | Learned location of Command (-1) 9027 | -5/Zhirov | Zhirov requested help retrieving the SGEMP Prototype 9036 | -5/Zhirov | Found Alien Artifact 9036 | -5/Zhirov | Identified Transdimensional Reconstructor 9036 | -5/Zhirov | Warped through subspace 9070 | -5/Zhirov | Found Alien Artifact 9070 | -5/Zhirov | Identified Integrated Dissipator 9070 | -5/Zhirov | Installed Integrated Dissipator, increased core heat dissipation (+20) 9145 | -5/Zhirov | Build established: Hacker-Mutant 9163 | -5/Zhirov | Entered Proximity Caves 9217 | -4/Proximity Caves | Spotted B-86 Titan 9394 | -4/Proximity Caves | Received a Behemoth hack from an annoying Tinkerer 9479 | -4/Proximity Caves | Learned Research trap positions 9622 | -4/Proximity Caves | Discovered new exit (range 16) 9631 | -4/Proximity Caves | Entered Factory 9631 | -4/Factory | Evolved 2 slots: Power x1, Utility x1 9632 | -4/Factory | Identified exit to Research 9633 | -4/Factory | Loaded intel: 92 trap records 9634 | -4/Factory | Loaded intel: 4 garrison access locations 9827 | -4/Factory | Fabricated Exp. Optical Array? 9829 | -4/Factory | Discovered new exit (range 5) 9831 | -4/Factory | Entered Upper Caves 9833 | -4/Upper Caves | Attracted the attention of an 0b10 checkpoint 9863 | -4/Upper Caves | Lost 6 parts (1p2n2u1w) 10118 | -4/Upper Caves | Learned 4 Research zone layouts 10133 | -4/Upper Caves | Learned Extension emergency access door positions 10133 | -4/Upper Caves | Learned location of 2 exits from Lower Caves 10133 | -4/Upper Caves | Learned Factory terminal intel 10179 | -4/Upper Caves | Learned 4 Research zone layouts 10228 | -4/Upper Caves | Discovered new exit (range 8) 10232 | -4/Upper Caves | Entered another Upper Caves area 10248 | -4/Upper Caves | Discovered exit to Research (range 8) 10251 | -4/Upper Caves | Entered Research 10251 | -3/Research | Evolved 2 slots: Propulsion x1, Utility x1 10252 | -3/Research | Identified exit to Quarantine 10253 | -3/Research | Loaded intel: 96 trap records 10624 | -3/Research | Lost 6 parts (2p1n3u) 10636 | -3/Research | Entered Quarantine 10896 | -3/Quarantine | Found Alien Artifact 10897 | -3/Quarantine | Identified Terrabomb 10897 | -3/Quarantine | Used Terrabomb 10897 | -3/Quarantine | Discovered new exit (range 15) 10932 | -3/Quarantine | Found Terrabomb 10933 | -3/Quarantine | Used Terrabomb 10940 | -3/Quarantine | System corruption reached 10% 10954 | -3/Quarantine | Core integrity fell below 50% 10971 | -3/Quarantine | Entered Research 10971 | -2/Research | Evolved 2 slots: Propulsion x1, Utility x1 10997 | -2/Research | Lost 13 parts (1p5n5u2w) 11113 | -2/Research | Build established: Mutant 11410 | -2/Research | System corruption reached 10% 11458 | -2/Research | Lost 10 parts (1p4n2u3w) 11486 | -2/Research | Core integrity fell below 50% 11518 | -2/Research | Core integrity fell below 20% 11528 | -2/Research | Destroyed by Y-72 Warden with Railgun Last Messages --------------- 11427_ R-10 Processor collects Sml. Battery. 11432_ Penetrated by Slug. 11432_ Slug penetrates Wall. 11462_ O-32 Director: "IFF HANDSHAKE FAILED. SECURING TERMINAL." 11464_ System corrupted: Matter fused (-10). 11471_ ALERT: Hostiles spotted, dispatching reinforcements to Terminal R013. 11485_ WRYU,=P/9Z